bitfinex-derivatives/quotes_BNBF0:USTF0_20250521
["timestamp","ask_amount","ask_price","bid_price","bid_amount"]
[1747846177979,0.97690835,670.94,669.42,0.888]
[1747846179980,0.97690835,670.93,669.42,0.888]
[1747846181075,0.97690835,670.92,669.42,0.888]
[1747846182882,0.97690835,670.91,669.42,0.888]
[1747846183681,0.97690835,670.9,669.42,0.888]
[1747846184787,0.97690835,670.89,669.56,0.43999591]
[1747846186284,0.97690835,670.88,669.56,0.43999591]
[1747846188287,0.97690835,670.87,669.42,0.888]
[1747846189987,1.11982183,671.31,669.42,0.888]
[1747846192591,1.11982183,671.31,669.41,0.25947687]
[1747846192892,0.97441893,671.3,669.75,0.43999591]
[1747846194094,0.97441893,671.29,669.75,0.43999591]
[1747846195493,0.97441893,671.29,669.76,0.96]
[1747846195993,0.97441893,671.28,669.76,0.96]
[1747846197794,0.97441893,671.48,669.76,0.96]
[1747846199294,1.11982183,671.45,669.78,0.43999591]
[1747846200796,0.97441893,671.44,669.78,0.43999591]
[1747846201997,1.11982183,671.27,669.76,0.96]
[1747846203397,0.97441893,671.26,669.76,0.96]
[1747846204998,0.97441893,671.26,669.77,1.128]
[1747846205398,1.11982183,671.19,669.77,1.128]
[1747846206899,0.97441893,671.18,669.77,1.128]
[1747846208605,0.97441893,671.17,669.77,1.128]
[1747846209306,0.97441893,671.17,669.78,1.17]
[1747846209706,0.97441893,671.16,669.78,1.17]
[1747846211505,0.25947203,671.9,669.78,1.17]
[1747846211506,0.97441893,671.15,669.78,1.17]
[1747846212602,0.97441893,671.46,669.78,1.17]
[1747846214710,0.97441893,671.45,669.99,0.43999591]
[1747846215911,1.11982183,671.52,669.99,0.43999591]
[1747846215912,0.97441893,671.44,669.99,0.43999591]
[1747846218612,2.246236,671.81,669.78,1.17]
[1747846218613,0.97441893,671.43,669.9,0.25941014]
[1747846219912,0.97441893,671.42,669.9,0.25941014]
[1747846221208,0.97441893,671.42,669.91,1.528]
[1747846222014,1.11982183,672.07,670.22,0.43999591]
[1747846223616,0.97233994,672.06,670.22,0.43999591]
[1747846225114,1.11982183,671.73,670.03,0.43999591]
[1747846226017,0.97233994,671.72,670.03,0.43999591]
[1747846227415,0.97233994,671.71,670.06,0.43999591]
[1747846228921,0.97233994,671.7,670.06,0.43999591]
[1747846230720,1.49749067,671.87,670.0,0.25930383]
[1747846230721,0.97233994,671.69,670.1,0.43999591]
[1747846232016,0.97233994,671.68,670.1,0.43999591]
[1747846233618,1.11982183,671.66,670.0,0.25930383]
[1747846234924,0.97233994,671.65,670.0,0.25930383]
[1747846236225,0.97233994,671.65,669.95,0.43999591]
[1747846236526,0.97233994,671.65,670.0,0.25938307]
[1747846236824,1.11982183,671.57,670.0,0.25938307]
[1747846238025,1.11982183,671.57,670.01,0.861]
[1747846238424,0.97233994,671.56,670.01,0.861]
[1747846240025,1.11982183,671.32,670.01,0.861]
[1747846241128,0.97233994,671.31,670.01,0.861]
[1747846242927,2.09216177,671.3,670.01,0.861]
[1747846243927,1.11982183,671.3,670.01,0.861]
[1747846245425,1.11982183,671.83,670.06,0.43999591]
[1747846247532,0.98761029,671.82,670.15,0.43999591]
[1747846248629,0.98761029,671.81,670.15,0.43999591]
[1747846250335,0.98761029,671.8,670.14,0.43999591]
[1747846251232,0.98761029,671.79,670.14,0.43999591]
[1747846252439,0.98761029,671.78,670.18,0.43999591]
[1747846252840,0.98761029,671.78,670.18,1.47799591]
[1747846253738,1.11982183,672.09,670.18,1.47799591]
[1747846255140,0.98378072,672.08,670.34,0.43999591]
[1747846256138,0.98378072,672.07,670.34,0.43999591]
[1747846258543,0.98378072,672.06,670.19,0.25923526]
[1747846260042,0.98378072,672.05,670.19,0.25923526]
[1747846260243,0.98378072,672.05,670.2,1.27]
[1747846260639,0.98378072,672.05,670.21,1.037]
[1747846261743,0.98378072,672.04,670.21,1.037]
[1747846262944,0.98378072,672.31,670.21,1.037]
[1747846264243,1.11982183,672.2,670.24,0.43999591]
[1747846265144,0.98378072,672.19,670.24,0.43999591]
[1747846266439,0.98378072,672.19,670.26,0.43999591]
[1747846266641,0.98378072,672.18,670.26,0.43999591]
[1747846268246,0.98378072,672.17,670.26,0.43999591]
[1747846269748,0.98378072,672.16,670.43,0.43999591]
[1747846271042,0.98378072,672.15,670.43,0.43999591]
[1747846272048,0.98378072,672.14,670.39,0.43999591]
[1747846272951,0.98378072,672.13,670.39,0.43999591]
[1747846274149,0.98378072,672.12,670.7,0.43999591]
[1747846274953,0.98378072,672.11,670.7,0.43999591]
[1747846277150,0.98378072,672.13,670.63,0.43999591]
[1747846278946,0.98378072,672.26,670.63,0.43999591]
[1747846280746,0.98378072,672.26,670.64,1.274]
[1747846280947,1.11982183,672.65,670.64,1.71399591]
[1747846281544,1.11982183,672.65,670.65,1.472]
[1747846282547,0.98314809,672.64,670.65,1.472]
[1747846284955,1.11982183,672.41,670.65,1.472]
[1747846286354,0.98314809,672.4,670.65,1.472]
[1747846287858,1.11982183,672.17,670.65,1.472]
[1747846289361,0.98314809,672.16,670.65,1.472]
[1747846289963,0.98314809,672.16,670.66,1.189]
[1747846291062,1.11982183,671.92,670.66,1.189]
[1747846292365,0.98314809,671.91,670.66,1.189]
[1747846293957,1.11982183,671.83,670.66,1.189]
[1747846295263,0.98314809,671.82,670.66,1.189]
[1747846297062,2.246236,672.13,670.66,1.189]
[1747846297063,1.11982183,671.69,670.66,1.189]
[1747846298363,0.98314809,671.68,670.66,1.189]
[1747846299966,1.11982183,671.61,670.66,1.189]
[1747846300467,1.11982183,671.61,670.67,1.405]
[1747846300968,0.98314809,671.6,670.67,1.405]
[1747846302759,1.11982183,671.17,670.67,1.405]
[1747846303960,0.98314809,671.16,670.67,1.405]
[1747846305461,1.11982183,671.0,670.67,1.405]
[1747846307064,0.98314809,670.99,670.67,1.405]
[1747846308168,0.98314809,670.98,670.67,1.405]
[1747846309668,0.98314809,671.16,670.67,1.405]
[1747846311069,0.98314809,671.15,670.67,1.405]
[1747846312570,0.98314809,671.14,670.67,1.405]
[1747846314172,1.11982183,671.05,670.67,1.405]
[1747846315372,0.98314809,671.04,670.67,1.405]
[1747846317273,0.98314809,671.03,670.67,1.405]
[1747846318767,1.11982183,671.09,670.67,1.405]
[1747846320573,1.11982183,671.89,670.67,1.405]
[1747846321875,0.98007529,671.88,670.67,1.405]
[1747846323576,0.98007529,671.87,670.67,1.405]
[1747846324873,0.98007529,671.86,670.67,1.405]
[1747846326476,1.11982183,672.15,670.67,1.405]
[1747846326677,1.11982183,672.15,670.29,0.25923912]
[1747846327177,1.11982183,672.15,670.3,0.992]
[1747846327979,1.11982183,672.15,670.31,1.079]
[1747846328475,0.98007529,672.14,670.31,1.079]
[1747846330476,1.11982183,671.95,670.31,1.079]
[1747846330678,1.11982183,671.95,670.31,2.288]
[1747846332080,0.98007529,671.94,670.31,2.288]
[1747846333882,1.11982183,671.82,670.31,2.288]
[1747846335279,0.98007529,671.81,670.31,2.288]
[1747846336986,1.11982183,672.24,670.31,2.288]
[1747846337888,0.98719621,672.23,670.31,2.288]
[1747846339686,0.25926133,672.22,670.31,2.288]
[1747846339892,1.11982183,671.86,670.31,2.288]
[1747846340793,0.98719621,671.85,670.31,2.288]
[1747846342294,1.11982183,671.76,670.31,2.288]
[1747846343888,0.98719621,671.75,670.31,3.215]
[1747846347497,0.98719621,672.08,670.31,3.215]
[1747846349294,1.11982183,671.8,670.31,3.215]
[1747846350693,0.98719621,671.79,670.31,3.215]
[1747846353204,0.98719621,671.78,670.31,3.215]
[1747846354305,0.98719621,672.02,670.31,3.215]
[1747846356402,0.98719621,672.01,670.31,3.215]
[1747846357808,0.98719621,672.23,670.31,3.215]
[1747846359411,0.98719621,672.22,670.31,3.215]
[1747846361010,0.98719621,672.21,670.31,3.215]
[1747846362511,0.98719621,672.3,670.35,0.43999591]
[1747846363814,0.98719621,672.44,670.35,0.43999591]
[1747846365417,0.98719621,672.43,670.32,0.43999591]
[1747846365814,0.98719621,672.43,670.33,0.98]
[1747846366112,0.98719621,672.42,670.33,0.98]
[1747846367419,0.98719621,672.42,670.34,0.92]
[1747846367819,0.98719621,672.42,670.35,1.253]
[1747846368018,1.11982183,672.21,670.35,1.253]
[1747846369220,0.98719621,672.2,670.35,1.253]
[1747846370419,1.11982183,672.15,670.35,1.253]
[1747846371521,0.98719621,672.14,670.35,1.253]
[1747846373027,1.11982183,672.09,670.35,1.253]
[1747846374025,0.98719621,672.08,670.35,1.253]
[1747846375821,1.11982183,671.9,670.35,1.253]
[1747846377328,0.98719621,671.89,670.35,1.253]
[1747846379132,1.11982183,671.44,670.35,1.253]
[1747846380826,0.98719621,671.43,670.35,1.253]
[1747846382932,1.11982183,671.26,670.35,1.253]
[1747846384136,0.98719621,671.25,670.35,1.253]
[1747846386542,1.11982183,670.73,670.35,1.253]
[1747846387843,0.98719621,670.72,670.35,1.253]
[1747846389343,0.98719621,670.71,670.35,1.253]
[1747846390535,1.11982183,670.86,670.35,1.253]
[1747846392038,1.11982183,671.22,670.35,1.253]
[1747846393940,0.99317531,671.21,670.35,1.253]
[1747846395347,0.99317531,671.21,670.36,0.997]
[1747846395743,0.99317531,671.2,670.36,0.997]
[1747846397148,0.99317531,671.19,670.36,0.997]
[1747846398653,0.99317531,671.18,670.36,0.997]
[1747846400354,0.99317531,671.17,670.36,0.997]
[1747846401858,0.99317531,671.17,670.37,1.15]
[1747846402858,0.99317531,671.16,670.37,1.15]
[1747846404157,1.11982183,671.54,670.37,1.15]
[1747846405457,0.99146719,671.53,670.37,1.15]
[1747846406860,0.99146719,671.52,670.37,1.15]
[1747846408561,0.99146719,671.61,670.37,1.15]
[1747846410060,0.99146719,671.6,670.37,1.15]
[1747846411862,1.11982183,671.38,670.37,1.15]
[1747846412861,1.11982183,671.38,670.38,1.256]
[1747846413065,1.11982183,671.38,670.38,2.611]
[1747846413565,0.99146719,671.37,670.38,2.611]
[1747846415071,0.99146719,671.36,670.38,2.611]
[1747846416779,0.99146719,671.45,670.38,2.611]
[1747846419271,0.99146719,671.68,670.38,2.611]
[1747846422376,0.99146719,671.88,670.38,2.611]
[1747846423681,0.99146719,671.87,670.38,2.611]
[1747846424578,0.99146719,671.86,670.38,2.611]
[1747846426784,0.99146719,671.85,670.38,2.611]
[1747846428383,0.99146719,671.84,670.38,2.611]
[1747846430584,0.99146719,671.83,670.38,2.611]
[1747846432186,0.99146719,671.82,670.38,2.611]
[1747846433087,0.99146719,671.82,670.38,1.256]
[1747846433686,0.99146719,671.81,670.38,1.256]
[1747846434688,0.99146719,671.8,670.38,1.256]
[1747846436385,0.99146719,671.8,670.39,1.326]
[1747846436589,0.99146719,671.79,670.39,1.326]
[1747846437892,0.99146719,671.98,670.39,1.326]
[1747846439491,0.99146719,671.98,670.4,1.12]
[1747846439989,0.99146719,671.97,670.4,1.12]
[1747846441090,0.99146719,672.07,670.4,1.12]
[1747846443092,0.99146719,672.06,670.4,1.12]
[1747846444091,0.99146719,672.24,670.4,1.12]
[1747846445493,1.11982183,672.22,670.4,1.12]
[1747846446892,0.99146719,672.21,670.4,1.12]
[1747846448999,0.25915996,672.65,670.4,1.12]
[1747846449000,0.99146719,672.2,670.4,1.12]
[1747846450397,0.99146719,672.38,670.4,1.12]
[1747846452096,0.99146719,672.37,670.4,1.12]
[1747846453295,0.99146719,672.36,670.4,1.12]
[1747846453997,0.99146719,672.36,670.41,1.026]
[1747846454294,0.99146719,672.36,670.42,1.233]
[1747846455298,0.99146719,672.35,670.42,1.233]
[1747846457296,0.99146719,672.34,670.42,1.233]
[1747846458998,0.99146719,672.33,670.42,1.233]
[1747846460500,0.99146719,672.32,670.42,1.233]
[1747846461902,0.99146719,672.31,670.42,1.233]
[1747846463203,0.99146719,672.3,670.42,1.233]
[1747846464908,1.11982183,671.99,670.42,1.233]
[1747846466109,0.99146719,671.98,670.42,1.233]
[1747846467710,0.99146719,671.97,670.42,1.233]
[1747846468413,0.99146719,671.96,670.42,1.233]
[1747846469916,0.99146719,672.15,670.42,1.233]
[1747846471412,0.99146719,672.14,670.42,1.233]
[1747846472921,0.99146719,672.13,670.42,1.233]
[1747846474023,0.99146719,672.13,670.43,0.922]
[1747846474418,0.99146719,672.12,670.43,0.922]
[1747846475822,1.11982183,672.06,670.43,0.922]
[1747846478126,0.99146719,672.05,670.43,0.922]
[1747846479528,2.11128902,672.04,670.59,0.43999591]
[1747846480731,0.99146719,672.03,670.59,0.43999591]
[1747846482433,1.11982183,671.8,670.43,0.922]
[1747846483735,0.99146719,671.79,670.43,0.922]
[1747846485936,0.99146719,671.79,670.43,1.864]
[1747846486236,1.11982183,671.48,670.43,1.864]
[1747846486938,1.11982183,671.48,670.43,2.995]
[1747846487939,0.99146719,671.47,670.43,2.995]
[1747846489638,1.11982183,671.45,670.43,2.995]
[1747846491045,0.99146719,671.44,670.43,2.995]
[1747846492948,0.99146719,671.43,670.43,2.995]
[1747846494446,0.99146719,671.42,670.43,2.995]
[1747846495747,1.11982183,671.37,670.43,2.995]
[1747846496847,0.99146719,671.36,670.43,2.995]
[1747846498048,1.11982183,671.33,670.43,2.995]
[1747846499949,0.99146719,671.32,670.43,2.995]
[1747846501546,1.11982183,671.3,670.43,2.995]
[1747846503253,0.99146719,671.29,670.43,2.995]
[1747846505051,2.11128902,671.28,670.43,2.995]
[1747846506255,0.99146719,671.27,670.43,2.995]
[1747846508158,1.11982183,671.13,670.43,2.995]
[1747846508458,1.11982183,671.13,670.43,2.073]
[1747846509555,0.99146719,671.12,670.43,2.073]
[1747846511560,1.11982183,671.05,670.43,2.073]
[1747846513159,0.99146719,671.04,670.43,2.073]
[1747846513963,0.99146719,671.03,670.43,2.073]
[1747846515764,0.99146719,671.02,670.43,2.073]
[1747846516864,0.99146719,671.01,670.43,2.073]
[1747846518566,0.99146719,671.0,670.43,2.073]
[1747846519967,0.99146719,670.99,670.43,2.073]
[1747846521666,0.99146719,670.98,670.43,2.073]
[1747846522868,0.99146719,670.97,670.43,2.073]
[1747846524269,0.99146719,670.96,670.43,2.073]
[1747846525967,0.99146719,670.95,670.43,2.073]
[1747846527369,0.99146719,670.94,670.43,2.073]
[1747846529470,0.99146719,670.93,670.43,2.073]
[1747846530571,0.99146719,670.92,670.43,2.073]
[1747846531470,1.11982183,670.9,670.43,2.073]
[1747846532870,0.99146719,670.89,670.43,2.073]
[1747846535173,1.11982183,670.77,670.43,2.073]
[1747846535573,1.11982183,670.77,670.43,0.942]
[1747846536568,0.99146719,670.76,670.43,0.942]
[1747846538576,0.99146719,670.75,670.43,0.942]
[1747846539775,0.99146719,670.74,670.43,0.942]
[1747846541675,0.99146719,670.73,670.43,0.942]
[1747846543280,0.99146719,670.72,670.43,0.942]
[1747846544979,0.99146719,670.72,670.36,1.255]
[1747846545181,0.99146719,670.71,670.36,1.255]
[1747846546682,0.99146719,670.7,670.36,1.255]
[1747846548083,0.99146719,670.69,670.36,1.255]
[1747846549385,0.99146719,670.68,670.36,1.255]
[1747846550787,1.11982183,670.66,670.36,1.255]
[1747846551680,0.99146719,670.65,670.36,1.255]
[1747846553387,1.11982183,670.55,670.36,1.255]
[1747846554882,0.99146719,670.54,670.36,1.255]
[1747846556592,0.99146719,670.53,670.36,1.255]
[1747846557891,0.99146719,670.52,670.36,1.255]
[1747846559188,0.99146719,670.51,670.36,1.255]
[1747846560493,0.99146719,670.5,670.36,1.255]
[1747846561992,0.99146719,670.49,670.36,1.255]
[1747846563393,0.99146719,670.48,670.36,1.255]
[1747846565401,1.49749067,670.46,670.36,1.255]
[1747846566899,0.99146719,670.45,670.36,1.255]
[1747846568203,1.11054316,670.4,670.36,1.255]
[1747846569403,0.99146719,670.39,670.36,1.255]
[1747846571103,0.99146719,670.38,670.36,1.255]
[1747846572502,0.99146719,670.37,670.36,1.255]
[1747846579110,0.99146719,670.37,670.31,1.233]
[1747846580013,1.10919498,670.32,670.31,1.233]
[1747846581214,2.10066217,670.32,670.31,1.233]
[1747846583817,0.99146719,670.32,670.31,1.233]
[1747846584018,0.99146719,670.32,669.92,1.227]
[1747846584619,1.10904282,669.96,669.92,1.227]
[1747846585718,0.99146719,669.95,669.92,1.227]
[1747846587123,0.99146719,669.94,669.92,1.227]
[1747846588523,0.99146719,669.93,669.92,1.227]
[1747846590927,1.10904282,670.27,669.92,1.227]
[1747846592626,1.10904282,670.11,669.92,1.227]
[1747846593923,0.97648129,670.1,669.92,1.227]
[1747846595529,1.10904282,670.07,669.92,1.227]
[1747846596935,0.97648129,670.06,669.92,1.227]
[1747846598938,1.10904282,669.94,669.92,1.227]
[1747846600338,0.97648129,669.93,669.92,1.227]
[1747846601740,2.08552411,669.93,669.92,1.227]
[1747846605047,0.97648129,669.93,669.92,1.227]
[1747846606641,0.97648129,669.93,669.16,1.327]
[1747846608842,2.246236,670.03,669.16,1.327]
[1747846610038,1.10475174,669.72,669.16,1.327]
[1747846613247,1.10475174,669.63,669.16,1.327]
[1747846614446,0.96383544,669.62,669.16,1.327]
[1747846616451,1.47300232,669.71,669.16,1.327]
[1747846616452,1.10475174,669.48,669.16,1.327]
[1747846617450,0.96383544,669.47,669.16,1.327]
[1747846619154,0.96383544,669.46,669.16,1.327]
[1747846619854,0.96383544,669.46,668.43,1.299]
[1747846620456,0.96383544,669.45,668.43,1.299]
[1747846622661,1.10475174,669.57,668.43,1.299]
[1747846623757,1.10475174,669.57,668.43,2.543]
[1747846624557,1.10475174,669.59,668.43,2.543]
[1747846627163,1.10475174,669.57,668.43,2.543]
[1747846629963,1.10475174,669.54,668.43,2.543]
[1747846632363,1.10475174,669.36,668.43,2.543]
[1747846634069,0.96240235,669.35,668.43,2.543]
[1747846635561,1.10475174,669.26,668.43,2.543]
[1747846635866,1.10475174,669.26,668.43,1.244]
[1747846637166,0.96240235,669.25,668.43,1.244]
[1747846639171,0.96240235,669.24,668.43,1.244]
[1747846640472,0.96240235,669.23,668.43,1.244]
[1747846641973,0.96240235,669.29,668.43,1.244]
[1747846643372,0.96240235,669.28,668.43,1.244]
[1747846645575,1.10475174,669.23,668.43,1.244]
[1747846646978,0.96240235,669.22,668.43,1.244]
[1747846649583,0.96240235,669.39,668.43,1.244]
[1747846651381,1.10475174,669.37,668.43,1.244]
[1747846652785,0.96240235,669.36,668.43,1.244]
[1747846654688,1.10475174,669.07,668.43,1.244]
[1747846654989,1.10475174,669.07,668.39,1.073]
[1747846655991,0.96240235,669.06,668.39,1.073]
[1747846657491,1.10475174,668.96,668.39,1.073]
[1747846659093,0.96240235,668.95,668.39,1.073]
[1747846660194,0.96240235,668.95,668.19,1.538]
[1747846660995,0.96240235,668.94,668.19,1.538]
[1747846662390,0.96240235,668.93,668.2,1.06]
[1747846664202,0.96240235,668.92,668.2,1.06]
[1747846665500,0.96240235,668.91,668.2,1.06]
[1747846667002,0.96240235,668.9,668.2,1.06]
[1747846667200,1.10475174,668.85,668.2,1.06]
[1747846668505,0.96240235,668.84,668.2,1.06]
[1747846670210,1.10475174,668.81,668.2,1.06]
[1747846671408,0.96240235,668.8,668.2,1.06]
[1747846673214,0.96240235,668.79,668.2,1.06]
[1747846674407,0.96240235,668.78,668.2,1.06]
[1747846676213,0.96240235,668.77,668.2,1.06]
[1747846677412,0.96240235,668.76,668.2,1.06]
[1747846678915,0.96240235,668.75,668.2,1.06]
[1747846680014,0.96240235,668.74,668.2,1.06]
[1747846681814,0.96240235,668.73,668.2,1.06]
[1747846682616,0.96240235,668.72,668.2,1.06]
[1747846684511,0.96240235,668.71,668.2,1.06]
[1747846686017,0.96240235,668.7,668.2,1.06]
[1747846687419,0.96240235,668.69,668.2,1.06]
[1747846688522,0.96240235,668.68,668.2,1.06]
[1747846690120,0.96240235,668.67,668.2,1.06]
[1747846691726,0.96240235,668.66,668.2,1.06]
[1747846693831,0.96240235,668.65,668.2,1.06]
[1747846694731,0.96240235,668.64,668.2,1.06]
[1747846696434,0.96240235,668.63,668.2,1.06]
[1747846697934,0.96240235,668.62,668.2,1.06]
[1747846699538,1.10475174,668.6,668.2,1.06]
[1747846700837,0.96240235,668.59,668.2,1.06]
[1747846702936,0.96240235,668.58,668.2,1.06]
[1747846704838,0.96240235,668.57,668.2,1.06]
[1747846705938,0.96240235,668.56,668.2,1.06]
[1747846707138,0.96240235,668.55,668.2,1.06]
[1747846709241,0.96240235,668.54,668.2,1.06]
[1747846710035,0.96240235,668.53,668.2,1.06]
[1747846711541,0.96240235,668.52,668.2,1.06]
[1747846713040,0.96240235,668.51,668.2,1.06]
[1747846714536,1.10475174,668.49,668.2,1.06]
[1747846716048,0.96240235,668.48,668.2,1.06]
[1747846717750,0.96240235,668.47,668.2,1.06]
[1747846718452,0.96240235,668.47,668.12,1.238]
[1747846719051,0.96240235,668.46,668.12,1.238]
[1747846720948,1.10475174,668.4,668.12,1.238]
[1747846722654,0.96240235,668.39,668.12,1.238]
[1747846724256,2.06715409,668.38,668.12,1.238]
[1747846725556,0.96240235,668.37,668.12,1.238]
[1747846726750,1.10475174,668.35,668.12,1.238]
[1747846728162,0.96240235,668.34,668.12,1.238]
[1747846729659,0.96240235,668.33,668.12,1.238]
[1747846730457,0.96240235,668.32,668.12,1.238]
[1747846732461,0.96240235,668.36,668.12,1.238]
[1747846733657,0.96240235,668.35,668.12,1.238]
[1747846735459,0.96240235,668.52,668.12,1.238]
[1747846736464,0.96240235,668.51,668.12,1.238]
[1747846738366,0.96240235,668.5,668.12,1.238]
[1747846739768,0.96240235,668.49,668.12,1.238]
[1747846741170,0.96240235,668.48,668.12,1.238]
[1747846741370,1.10475174,668.85,668.12,1.238]
[1747846744175,1.10475174,669.78,668.28,0.29755548]
[1747846746577,1.10475174,670.19,668.39,0.29755548]
[1747846748778,1.10475174,670.26,668.11,0.29755548]
[1747846749974,1.10475174,670.26,668.12,1.31]
[1747846751081,1.10475174,670.38,668.12,1.31]
[1747846753687,1.10475174,670.64,668.19,0.29755548]
[1747846756892,1.10475174,671.0,668.19,0.29755548]
[1747846757092,1.10475174,671.0,668.27,0.29755548]
[1747846758893,0.25983238,670.99,668.27,0.29755548]
[1747846760295,0.25983238,670.99,668.12,1.31]
[1747846761597,1.10475174,671.06,668.12,1.31]
[1747846761992,1.10475174,671.06,668.13,1.23]
[1747846762498,1.10475174,671.07,668.13,1.52755548]
[1747846762997,0.25982656,671.06,668.13,1.52755548]
[1747846764599,1.10475174,671.07,668.13,1.52755548]
[1747846764992,1.10475174,671.26,668.13,1.23]
[1747846765796,0.25980813,671.25,668.13,1.23]
[1747846767691,1.10475174,671.3,668.13,1.23]
[1747846769199,0.2597771,671.29,668.13,1.23]
[1747846769400,0.2597771,671.29,668.23,0.29755548]
[1747846770598,1.10475174,671.45,668.23,0.29755548]
[1747846771694,1.10475174,671.45,668.24,1.354]
[1747846771898,0.25980134,671.44,668.24,1.354]
[1747846772299,1.10475174,671.31,668.24,1.354]
[1747846774399,1.10475174,671.32,668.24,1.354]
[1747846774605,0.25982171,671.3,668.24,1.354]
[1747846776601,1.10475174,671.32,668.24,1.354]
[1747846776901,1.10475174,670.87,668.24,1.354]
[1747846779000,1.10475174,670.51,668.24,1.354]
[1747846781803,1.10475174,670.97,668.24,1.354]
[1747846783706,1.10475174,670.97,668.25,1.504]
[1747846784906,1.10475174,671.17,668.25,1.504]
[1747846785902,0.25980619,671.16,668.25,1.504]
[1747846786506,0.25980619,671.16,668.26,1.281]
[1747846787106,1.10475174,671.02,668.26,1.281]
[1747846788106,1.10475174,671.02,668.25,1.504]
[1747846789310,1.10475174,670.59,668.25,1.504]
[1747846790810,1.10475174,670.59,668.26,1.303]
[1747846792012,1.10475174,670.72,668.26,1.303]
[1747846794406,1.10475174,670.86,668.29,0.29755548]
[1747846795312,1.10475174,670.86,668.3,0.906]
[1747846796707,1.10475174,670.58,668.57,0.29755548]
[1747846799618,1.10475174,670.68,668.85,0.29755548]
[1747846802317,1.10475174,670.6,669.07,0.29755548]
[1747846803513,1.10475174,670.6,669.08,1.516]
[1747846805214,1.10475174,670.41,669.08,1.516]
[1747846808315,1.10475174,670.48,669.16,0.29755548]
[1747846810818,1.10475174,670.36,669.08,1.516]
[1747846811519,1.10475174,670.36,669.09,1.144]
[1747846811919,0.97329849,670.35,669.09,1.144]
[1747846814216,0.97329849,670.35,669.15,0.43999591]
[1747846814423,0.97329849,670.34,669.15,0.43999591]
[1747846815022,1.10475174,670.5,669.15,0.43999591]
[1747846817027,0.97214267,670.49,669.18,0.43999591]
[1747846818026,0.97214267,670.48,669.18,0.43999591]
[1747846819923,0.97214267,670.47,669.11,0.25978874]
[1747846821325,0.97214267,670.46,669.11,0.25978874]
[1747846821627,0.97214267,670.46,669.12,1.157]
[1747846823828,1.10475174,670.43,669.12,1.157]
[1747846825328,0.97214267,670.42,669.12,1.157]
[1747846826425,1.10475174,670.31,669.12,1.157]
[1747846828330,0.97214267,670.3,669.12,1.157]
[1747846829432,0.97214267,670.29,669.12,1.157]
[1747846831030,0.97214267,670.28,669.12,1.157]
[1747846832332,0.97214267,670.27,669.12,1.157]
[1747846833432,0.97214267,670.26,669.12,1.157]
[1747846835534,0.97214267,670.25,669.12,1.157]
[1747846837335,1.10475174,670.59,669.12,1.157]
[1747846838435,0.97219115,670.58,669.12,1.157]
[1747846840034,0.97219115,670.57,669.12,1.157]
[1747846841240,1.10475174,670.38,669.12,1.157]
[1747846842038,0.97219115,670.37,669.12,1.157]
[1747846843640,1.10475174,670.35,669.12,1.157]
[1747846844739,0.97219115,670.34,669.12,1.157]
[1747846846139,1.10475174,670.24,669.12,1.157]
[1747846848043,0.97219115,670.23,669.12,1.157]
[1747846849743,1.10475174,670.21,669.12,1.157]
[1747846851846,1.10475174,670.22,669.15,0.29887589]
[1747846854843,1.10475174,670.57,669.21,0.43999591]
[1747846855947,0.97984424,670.56,669.21,0.43999591]
[1747846857550,1.10475174,670.52,669.15,0.25975189]
[1747846857850,1.10475174,670.52,669.12,1.157]
[1747846858050,1.10475174,670.52,669.17,0.25974995]
[1747846858747,0.97984424,670.51,669.17,0.25974995]
[1747846860256,0.97984424,670.5,669.44,0.43999591]
[1747846861658,0.97984424,670.49,669.44,0.43999591]
[1747846863360,1.10475174,670.5,669.5,0.29850584]
[1747846866663,1.10475174,670.28,669.27,0.29850584]